bitfinex-derivatives/quotes_BNBF0:USTF0_20250413
["timestamp","ask_amount","ask_price","bid_price","bid_amount"]
[1744519046878,0.30953476,594.5,593.32,0.53173751]
[1744519047075,0.30953476,594.5,593.33,0.53173751]
[1744519047276,0.30953476,594.5,593.34,0.53173751]
[1744519047481,0.30953476,594.5,593.35,0.53173751]
[1744519047782,0.30953476,594.5,593.36,0.53147685]
[1744519047976,0.30953476,594.5,593.37,0.53147685]
[1744519048277,0.29311311,594.49,593.38,0.53147685]
[1744519048482,0.30953476,594.48,593.39,0.53147685]
[1744519048676,0.33643413,594.47,593.4,0.53147685]
[1744519048878,0.30953476,594.46,593.41,0.53147685]
[1744519049081,0.33644545,594.45,593.42,0.53147685]
[1744519049277,0.30953476,594.44,593.43,0.53147685]
[1744519049478,0.30953476,594.44,593.44,0.53147685]
[1744519049682,0.30953476,594.44,593.45,0.53147685]
[1744519049882,0.30953476,594.44,593.25,0.337126]
[1744519049883,0.30953476,594.44,593.46,0.53147685]
[1744519050083,0.30953476,594.44,593.47,0.53147685]
[1744519050284,0.30953476,594.44,593.25,0.337126]
[1744519050583,0.30953476,594.44,593.26,0.53132952]
[1744519050782,0.30953476,594.44,593.27,0.53132952]
[1744519051088,0.30953476,594.43,593.28,0.53132952]
[1744519051285,0.29312792,594.43,593.29,0.53132952]
[1744519051482,0.29312792,594.43,593.25,0.337126]
[1744519051483,0.29312792,594.43,593.3,0.53132952]
[1744519051679,0.30957618,594.42,593.31,0.53132952]
[1744519051878,0.30957618,594.42,593.32,0.53132952]
[1744519052079,0.30957618,594.41,593.33,0.53132952]
[1744519052283,0.30957618,594.41,593.34,0.53132952]
[1744519052485,0.30957618,594.4,593.35,0.53132952]
[1744519052779,0.30957618,594.39,593.36,0.53132952]
[1744519052983,0.30957618,594.41,593.37,0.53132952]
[1744519053179,0.30957618,594.4,593.38,0.53132952]
[1744519053384,0.30957618,594.41,593.39,0.53132952]
[1744519053585,0.30957618,594.4,593.4,0.53132952]
[1744519053788,0.30957618,594.41,593.41,0.53132952]
[1744519053988,0.30957618,594.41,593.42,0.53132952]
[1744519054183,0.30957618,594.41,593.43,0.53132952]
[1744519054383,0.29314644,594.4,593.44,0.53128742]
[1744519054583,0.30957618,594.39,593.25,0.337126]
[1744519054785,0.30957618,594.39,593.26,0.53127917]
[1744519054982,0.30957618,594.39,593.27,0.53127917]
[1744519055182,0.29314644,594.4,593.28,0.53127917]
[1744519055387,0.30958151,594.39,593.29,0.53127917]
[1744519055584,0.30958151,594.39,593.3,0.53127917]
[1744519055884,0.30958151,594.39,593.31,0.53127917]
[1744519056087,0.30958151,594.39,593.25,0.337126]
[1744519056088,0.30958151,594.39,593.32,0.53127917]
[1744519056288,0.29314891,594.38,593.33,0.53127917]
[1744519056489,0.30958151,594.37,593.34,0.53127917]
[1744519056686,0.30958151,594.37,593.35,0.53127917]
[1744519056889,0.30958151,594.37,593.36,0.53127917]
[1744519057091,0.30958151,594.37,593.37,0.53127917]
[1744519057392,0.30958151,594.37,593.38,0.53127917]
[1744519057591,0.30958151,594.37,593.39,0.53127917]
[1744519057789,0.30958151,594.37,593.4,0.53127917]
[1744519057991,0.30958151,594.37,593.41,0.53127917]
[1744519058189,0.30958151,594.37,593.42,0.53127917]
[1744519058392,0.29314891,594.38,593.43,0.53127917]
[1744519058586,0.30959135,594.37,593.35,0.494]
[1744519058791,0.30959135,594.37,593.36,0.53123487]
[1744519058988,0.30959135,594.37,593.35,0.494]
[1744519058989,0.30959135,594.37,593.37,0.53123487]
[1744519059190,0.30959135,594.41,593.38,0.53123487]
[1744519059491,0.30959135,594.4,593.39,0.53123487]
[1744519059795,0.30959135,594.39,593.4,0.53123487]
[1744519059995,0.30959135,594.39,593.41,0.53123487]
[1744519060196,0.30959135,594.39,593.42,0.53123487]
[1744519060397,0.30959135,594.39,593.38,0.5]
[1744519060599,0.30959135,594.39,593.39,0.53120816]
[1744519060791,0.30959135,594.39,593.4,0.53120816]
[1744519061093,0.30959135,594.39,593.41,0.53120816]
[1744519061292,0.30959135,594.39,593.38,0.5]
[1744519061492,0.30959135,594.39,593.41,0.576]
[1744519061693,0.29313409,594.4,593.41,0.576]
[1744519061893,0.30959202,594.39,593.41,0.576]
[1744519062294,0.30959202,594.41,593.42,0.5311786]
[1744519062492,0.29313286,594.38,593.43,0.5311786]
[1744519062693,0.30959202,594.37,593.41,0.576]
[1744519062896,0.30959202,594.37,593.42,0.5311811]
[1744519063098,0.30959202,594.37,593.43,0.5311811]
[1744519063299,0.30959202,594.37,593.41,0.576]
[1744519063498,0.30958012,594.36,593.42,0.53116624]
[1744519063697,0.30958012,594.37,593.43,0.53116624]
[1744519063900,0.30958012,594.36,593.41,0.576]
[1744519064100,0.30958012,594.37,593.42,0.53116624]
[1744519064300,0.30958012,594.36,593.43,0.53116624]
[1744519064500,0.29313286,594.38,593.41,0.576]
[1744519064501,0.30958012,594.37,593.41,0.576]
[1744519064701,0.30958012,594.36,593.42,0.53116198]
[1744519064995,0.30958012,594.35,593.43,0.53116198]
[1744519065201,0.30958012,594.41,593.44,0.53112359]
[1744519065395,0.29311434,594.35,593.45,0.53112359]
[1744519065597,0.30958012,594.34,593.41,0.576]
[1744519065794,0.30958012,594.34,593.42,0.53112698]
[1744519066004,0.30958012,594.34,593.43,0.53112698]
[1744519066198,0.30958012,594.34,593.44,0.53112698]
[1744519066397,0.30958012,594.34,593.45,0.53112698]
[1744519066595,0.30958012,594.34,593.46,0.53112698]
[1744519066896,0.30958012,594.34,593.41,0.576]
[1744519067098,0.30958012,594.34,593.42,0.53109515]
[1744519067299,0.30958012,594.34,593.43,0.53109515]
[1744519067500,0.30958012,594.34,593.41,0.576]
[1744519067697,0.30958012,594.34,593.42,0.53104338]
[1744519067900,0.30958012,594.34,593.43,0.53104338]
[1744519068101,0.30958012,594.34,593.44,0.53104338]
[1744519068401,0.30958012,594.33,593.45,0.53104338]
[1744519068697,0.30958012,594.32,593.46,0.53104338]
[1744519068896,0.30958012,594.41,593.47,0.53104338]
[1744519069101,0.30958012,594.41,593.48,0.53104338]
[1744519069300,0.30958012,594.41,593.49,0.53104338]
[1744519069503,0.29309953,594.4,593.5,0.53104338]
[1744519069703,0.30958012,594.39,593.41,0.576]
[1744519069900,0.29309953,594.4,593.42,0.53098486]
[1744519070103,0.30954138,594.39,593.43,0.53098486]
[1744519070300,0.30954138,594.39,593.44,0.53098486]
[1744519070502,0.30954138,594.39,593.45,0.53098486]
[1744519070704,0.30954138,594.39,593.46,0.53098486]
[1744519071005,0.30954138,594.39,593.47,0.53098486]
[1744519071205,0.30954138,594.41,593.48,0.53098486]
[1744519071406,0.29310076,594.38,593.49,0.53098486]
[1744519071599,0.29310076,594.38,593.5,0.53098486]
[1744519071799,0.30953703,594.37,593.51,0.53098486]
[1744519072102,0.30953703,594.37,593.42,0.619]
[1744519072301,0.30953703,594.37,593.43,0.53091764]
[1744519072500,0.30953703,594.37,593.44,0.53091764]
[1744519072703,0.30953703,594.37,593.45,0.53091764]
[1744519072902,0.30953703,594.37,593.46,0.53091764]
[1744519073204,0.29310076,594.38,593.47,0.53091764]
[1744519073407,0.30953643,594.37,593.48,0.53091764]
[1744519073604,0.30953643,594.37,593.49,0.53091764]
[1744519073807,0.30953643,594.37,593.5,0.53091764]
[1744519074006,0.30953643,594.37,593.51,0.53088348]
[1744519074202,0.30953643,594.37,593.5,0.722]
[1744519074402,0.30953643,594.41,593.51,0.53086966]
[1744519074605,0.30953643,594.4,593.5,0.722]
[1744519074807,0.30953643,594.41,593.51,0.53087021]
[1744519075002,0.30953643,594.4,593.5,0.722]
[1744519075204,0.30953643,594.41,593.51,0.53087064]
[1744519075405,0.60262485,594.4,593.5,0.722]
[1744519075605,0.30953643,594.39,593.51,0.53085428]
[1744519075806,0.30953643,594.39,593.5,0.722]
[1744519076105,0.30953643,594.39,593.51,0.53085293]
[1744519076305,0.30953643,594.39,593.5,0.722]
[1744519076504,0.30953643,594.39,593.51,0.53084838]
[1744519076703,0.30953643,594.39,593.5,0.722]
[1744519077304,0.30953643,594.41,593.5,0.722]
[1744519077506,0.30953643,594.4,593.51,0.784]
[1744519077706,0.30953643,594.41,593.51,0.784]
[1744519077906,0.30953643,594.4,593.51,0.784]
[1744519078104,0.30953643,594.41,593.51,0.784]
[1744519078308,0.33646243,594.42,593.51,0.784]
[1744519078309,0.29308719,594.39,593.51,0.784]
[1744519078508,0.30953643,594.38,593.51,0.784]
[1744519080211,0.33646243,594.42,593.51,0.784]
[1744519080406,0.30955133,594.41,593.51,0.784]
[1744519080917,0.33646243,594.42,593.51,0.784]
[1744519081212,0.30958246,594.41,593.51,0.784]
[1744519081413,0.29308595,594.41,593.51,0.784]
[1744519081613,0.30958403,594.4,593.51,0.784]
[1744519083318,0.30958403,594.41,593.52,0.549]
[1744519083519,0.30958403,594.4,593.52,0.549]
[1744519083718,0.33646243,594.42,593.52,0.549]
[1744519083719,0.30958403,594.41,593.52,0.549]
[1744519083913,0.30958403,594.4,593.52,0.549]
[1744519084116,0.30958403,594.41,593.52,0.549]
[1744519084320,0.29311187,594.39,593.52,0.549]
[1744519084517,0.30958403,594.38,593.52,0.549]
[1744519087417,0.30958403,594.38,593.52,1.235]
[1744519087824,0.29311187,594.39,593.52,1.235]
[1744519088024,0.30956724,594.38,593.52,1.235]
[1744519088225,0.30956724,594.38,593.52,1.726]
[1744519089425,0.30956724,594.37,593.52,1.726]
[1744519089626,0.30956724,594.41,593.52,1.726]
[1744519089827,0.30956724,594.4,593.52,1.726]
[1744519090127,0.30956724,594.39,593.52,1.726]
[1744519090326,0.29309582,594.39,593.53,0.53219357]
[1744519090526,0.30956724,594.38,593.52,1.726]
[1744519090724,0.30956724,594.38,593.53,0.53219406]
[1744519090927,0.30956724,594.38,593.52,1.726]
[1744519091126,0.30956724,594.38,593.53,0.532194]
[1744519091422,0.30956724,594.38,593.54,0.53237771]
[1744519091622,0.30956724,594.38,593.52,1.726]
[1744519091826,0.30956724,594.38,593.53,0.5323775]
[1744519092026,0.30956724,594.38,593.54,0.5323775]
[1744519092224,0.30956724,594.41,593.55,0.5323775]
[1744519092421,0.30956724,594.4,593.56,0.5323775]
[1744519092625,0.30956724,594.41,593.57,0.5323775]
[1744519092827,0.30956724,594.41,593.58,0.5323775]
[1744519093026,0.30956724,594.41,593.59,0.5323775]
[1744519093227,0.29307114,594.4,593.6,0.5324964]
[1744519093428,0.30956724,594.39,593.61,0.5324964]
[1744519093628,0.30956724,594.39,593.62,0.5324964]
[1744519093829,0.30956724,594.39,593.63,0.5324964]
[1744519094027,0.30956724,594.39,593.64,0.5324964]
[1744519094229,0.30956724,594.39,593.52,1.726]
[1744519094424,0.30956724,594.39,593.53,0.53273348]
[1744519094623,0.30956724,594.39,593.54,0.53273348]
[1744519094828,0.30956724,594.39,593.55,0.53273348]
[1744519095030,0.30956724,594.39,593.56,0.53273348]
[1744519095230,0.30956724,594.39,593.57,0.53273348]
[1744519095426,0.30956724,594.41,593.58,0.53273348]
[1744519095633,0.30956724,594.41,593.59,0.53273348]
[1744519095833,0.30956724,594.41,593.6,0.53273348]
[1744519096026,0.30956724,594.41,593.61,0.53273348]
[1744519096227,0.30956724,594.41,593.62,0.53273348]
[1744519096431,0.29307114,594.4,593.63,0.53273348]
[1744519096632,0.30956724,594.39,593.64,0.53273348]
[1744519096833,0.30956724,594.39,593.52,1.726]
[1744519097032,0.30956724,594.39,593.53,0.53278067]
[1744519097233,0.30956724,594.39,593.54,0.53278067]
[1744519097429,0.30956724,594.39,593.55,0.53278067]
[1744519097635,0.30956724,594.39,593.56,0.53278067]
[1744519097928,0.30956724,594.39,593.57,0.53278067]
[1744519098136,0.30956724,594.39,593.58,0.53278067]
[1744519098335,0.30956724,594.39,593.59,0.53278067]
[1744519098636,0.30956724,594.39,593.6,0.53278067]
[1744519098833,0.30956724,594.39,593.52,1.726]
[1744519099036,0.30956724,594.39,593.53,0.5329078]
[1744519099232,0.30956724,594.39,593.54,0.5329078]
[1744519099434,0.30956724,594.39,593.55,0.5329078]
[1744519099642,0.30956724,594.39,593.56,0.5329078]
[1744519099840,0.30956724,594.39,593.57,0.5329078]
[1744519100030,0.30956724,594.39,593.52,1.726]
[1744519100233,0.30956724,594.39,593.53,0.53294594]
[1744519100529,0.30956724,594.39,593.54,0.53294594]
[1744519100732,0.30956724,594.39,593.55,0.53294594]
[1744519100934,0.29307114,594.4,593.56,0.53294594]
[1744519101133,0.3095567,594.38,593.57,0.53294594]
[1744519101331,0.33646243,594.42,593.58,0.53294594]
[1744519101533,0.3095567,594.41,593.52,1.531]
[1744519101730,0.3095567,594.41,593.53,0.53295243]
[1744519101935,0.3095567,594.41,593.54,0.53295243]
[1744519102136,0.3095567,594.41,593.55,0.53295243]
[1744519102335,0.3095567,594.41,593.56,0.53295243]
[1744519102536,0.29309582,594.4,593.57,0.53295243]
[1744519102737,0.3095567,594.39,593.58,0.53295243]
[1744519102938,0.3095567,594.39,593.59,0.53295243]
[1744519103137,0.3095567,594.39,593.6,0.53295243]
[1744519103440,0.3095567,594.39,593.61,0.53294847]
[1744519103638,0.3095567,594.39,593.55,0.78]
[1744519103938,0.3095567,594.39,593.56,0.53294689]
[1744519104132,0.3095567,594.39,593.57,0.53294689]
[1744519104333,0.3095567,594.41,593.58,0.53294689]
[1744519104534,0.3095567,594.41,593.55,0.78]
[1744519104738,0.3095567,594.41,593.56,0.53297734]
[1744519104939,0.3095567,594.41,593.57,0.53297734]
[1744519105235,0.29307731,594.4,593.58,0.53297734]
[1744519105440,0.29307731,594.4,593.56,0.711]
[1744519105441,0.3095567,594.39,593.56,0.711]
[1744519105640,0.3095567,594.39,593.57,0.53299107]
[1744519105835,0.3095567,594.39,593.58,0.53299107]
[1744519106036,0.3095567,594.39,593.59,0.53298546]
[1744519106239,0.3095567,594.39,593.56,0.711]
[1744519106439,0.3095567,594.39,593.57,0.53299763]
[1744519106637,0.3095567,594.39,593.58,0.53299763]
[1744519106836,0.3095567,594.39,593.59,0.53299763]
[1744519107038,0.3095567,594.39,593.6,0.53299555]
[1744519107242,0.3095567,594.41,593.56,0.711]
[1744519107540,0.3095567,594.4,593.57,0.53300621]
[1744519107742,0.3095567,594.41,593.58,0.53300621]
[1744519107938,0.3095567,594.41,593.59,0.53300621]
[1744519108139,0.3095567,594.41,593.6,0.53300621]
[1744519108337,0.29307608,594.4,593.61,0.53300046]
[1744519108642,0.3095567,594.39,593.56,1.198]
[1744519108838,0.3095567,594.39,593.57,0.53300693]
[1744519109038,0.3095567,594.39,593.58,0.53300693]
[1744519109246,0.3095567,594.39,593.59,0.53300693]
[1744519109443,0.3095567,594.39,593.56,1.198]
[1744519109645,0.3095567,594.39,593.57,0.53303131]
[1744519109842,0.3095567,594.39,593.56,1.198]
[1744519110360,0.3095567,594.38,593.57,0.53302838]
[1744519110539,0.3095567,594.41,593.56,1.198]
[1744519111245,0.29309089,594.4,593.56,1.198]
[1744519111445,0.3095567,594.39,593.56,1.198]
[1744519111745,0.3095567,594.39,593.57,0.53304049]
[1744519111948,0.3095567,594.39,593.58,0.53303394]
[1744519112146,0.3095567,594.39,593.58,0.669]
[1744519113448,0.3095567,594.41,593.58,0.669]
[1744519113644,0.3095567,594.4,593.58,0.669]
[1744519113842,0.3095567,594.41,593.58,0.669]
[1744519114146,0.3095567,594.4,593.58,0.669]
[1744519114349,0.29308842,594.4,593.58,0.669]
[1744519114547,0.3095567,594.39,593.58,0.669]
[1744519116249,0.3095567,594.41,593.58,0.669]
[1744519116543,0.29309089,594.38,593.58,0.669]
[1744519116747,0.3095567,594.37,593.58,0.669]
[1744519117748,0.3095567,594.37,593.59,0.477]
[1744519119343,0.3095567,594.41,593.59,0.477]
[1744519119544,0.3095567,594.4,593.59,0.477]
[1744519119850,0.3095567,594.39,593.59,0.477]
[1744519120048,0.3095567,594.41,593.59,0.477]
[1744519120250,0.3095567,594.4,593.59,0.477]
[1744519120444,0.2931057,594.38,593.59,0.477]
[1744519120650,0.3095567,594.37,593.59,0.477]
[1744519121449,0.64604743,594.37,593.59,0.477]
[1744519121645,0.3095567,594.36,593.59,0.477]
[1744519121849,0.33650206,594.35,593.59,0.477]
[1744519122050,0.3095567,594.34,593.59,0.477]
[1744519122345,0.33651338,594.33,593.59,0.477]
[1744519122650,0.30964144,594.32,593.59,0.477]
[1744519122949,0.64616048,594.32,593.59,0.477]
[1744519123152,0.30964144,594.31,593.59,0.477]
[1744519123351,0.60278294,594.31,593.59,0.477]
[1744519123652,0.30964144,594.3,593.59,0.477]
[1744519125446,0.29314397,594.29,593.59,0.477]
[1744519125647,0.60278541,594.29,593.59,0.477]
[1744519125850,0.30964144,594.28,593.59,0.477]
[1744519127046,0.30964144,594.28,593.6,0.635]
[1744519128449,0.30964144,594.27,593.6,0.635]
[1744519128653,0.30964144,594.31,593.6,0.635]
[1744519128851,0.30964144,594.3,593.6,0.635]
[1744519129148,0.30964144,594.29,593.6,0.635]
[1744519129354,0.29312051,594.29,593.6,0.635]
[1744519129552,0.30964144,594.28,593.6,0.635]
[1744519130957,0.30964144,594.28,593.61,0.743]
[1744519131250,0.30964144,594.28,593.61,1.426]
[1744519131452,0.30964144,594.31,593.61,1.426]
[1744519132154,0.33651904,594.32,593.61,1.426]
[1744519132355,0.29311928,594.3,593.61,1.426]
[1744519132555,0.30962265,594.29,593.61,1.426]
[1744519134258,0.30962265,594.31,593.61,1.426]
[1744519134459,0.6027444,594.28,593.61,1.426]
[1744519134658,0.30962265,594.27,593.61,1.426]
[1744519137355,0.30962265,594.31,593.61,1.426]
[1744519138460,0.29313903,594.3,593.61,1.426]
[1744519138660,0.30962265,594.29,593.61,1.426]
[1744519140262,0.30962265,594.31,593.61,1.426]
[1744519140863,0.30962265,594.31,593.62,0.531]
[1744519141367,0.29313903,594.3,593.62,0.531]
[1744519141558,0.30962265,594.29,593.62,0.531]
[1744519142966,0.29313903,594.3,593.62,0.531]
[1744519143167,0.3096123,594.29,593.62,0.531]
[1744519143467,0.60273158,594.28,593.62,0.531]
[1744519143768,0.3096123,594.27,593.62,0.531]
[1744519146266,0.30966042,594.26,593.62,0.531]
[1744519146570,0.30966042,594.25,593.62,0.531]
[1744519148476,0.6462191,594.25,593.62,0.531]
[1744519148767,0.30966042,594.24,593.63,0.65]
[1744519149072,0.30966042,594.24,593.64,0.633]
[1744519149268,0.33655868,594.25,593.64,0.633]
[1744519149478,0.30968237,594.24,593.64,0.633]
[1744519150274,0.29316126,594.23,593.64,0.633]
[1744519150474,0.30968237,594.22,593.64,0.633]
[1744519150978,0.29316126,594.23,593.64,0.633]
[1744519151168,0.30969217,594.22,593.64,0.633]
[1744519151373,0.64626784,594.22,593.64,0.633]
[1744519151570,0.30969217,594.21,593.64,0.633]
[1744519151875,0.336587,594.2,593.64,0.633]
[1744519152071,0.30969217,594.19,593.64,0.633]
[1744519152274,0.33659833,594.18,593.64,0.633]
[1744519152473,0.30969217,594.17,593.64,0.633]
[1744519153375,0.29318719,594.16,593.64,0.633]
[1744519153676,0.30969217,594.15,593.64,0.633]
[1744519155575,0.33659833,594.18,593.64,0.633]
[1744519155576,0.30969217,594.17,593.64,0.633]
[1744519155776,0.33659833,594.18,593.64,0.633]
[1744519155978,0.30977581,594.17,593.64,0.633]
[1744519156177,0.30977581,594.17,593.65,0.69]
[1744519156178,0.33660966,594.16,593.65,0.69]
[1744519156378,0.62982155,594.16,593.65,0.69]
[1744519156577,0.30977581,594.15,593.65,1.367]
[1744519156776,0.33662099,594.14,593.65,1.367]
[1744519156973,0.30977581,594.13,593.65,1.367]
[1744519157175,0.33663233,594.12,593.65,1.367]
[1744519157579,0.30978168,594.11,593.65,1.367]
[1744519157875,0.33664366,594.1,593.65,1.367]
[1744519158075,0.30978168,594.09,593.65,1.367]
[1744519158275,0.33665499,594.08,593.65,1.367]
[1744519158478,0.30978168,594.07,593.65,1.367]
[1744519158678,0.33666633,594.06,593.65,1.367]
[1744519158876,0.30978168,594.05,593.65,1.367]
[1744519159389,0.29322548,594.04,593.65,1.367]
[1744519159582,0.30978168,594.03,593.65,1.367]
[1744519159778,0.30978168,594.03,593.65,2.058]
[1744519162284,0.29322548,594.04,593.65,2.058]
[1744519162477,0.30974556,594.03,593.65,2.058]
[1744519163884,0.29322548,594.04,593.65,2.058]
[1744519164080,0.64645995,594.03,593.65,2.058]
[1744519164285,0.30977662,594.02,593.65,2.058]
[1744519164486,0.33669466,594.01,593.65,2.058]
[1744519164683,0.30977662,594.0,593.65,2.058]
[1744519164882,0.336706,593.99,593.65,2.058]
[1744519165282,0.30977662,593.98,593.65,2.058]
[1744519165484,0.33671734,593.97,593.65,2.058]
[1744519165886,0.30985362,593.96,593.65,2.058]
[1744519166186,0.33672868,593.95,593.65,2.058]
[1744519166386,0.30985362,593.94,593.65,2.058]
[1744519166787,0.64658797,593.94,593.65,2.058]
[1744519166980,0.30985362,593.93,593.65,2.058]
[1744519167481,0.33674568,593.92,593.65,2.058]
[1744519167683,0.30985362,593.91,593.65,2.058]
[1744519167881,0.33675702,593.9,593.65,2.058]
[1744519168084,0.30985362,593.89,593.65,2.058]
[1744519171290,0.29327737,593.88,593.65,2.058]
[1744519171490,0.30985362,593.87,593.65,2.058]
[1744519171990,0.29327737,593.88,593.65,2.058]
[1744519172192,0.30983594,593.87,593.65,2.058]
[1744519172594,0.30983594,593.87,593.65,1.381]
[1744519173388,0.30983594,593.89,593.65,1.381]
[1744519173689,0.30983594,593.88,593.65,1.381]
[1744519173890,0.30983594,593.89,593.65,1.381]
[1744519174087,0.30983594,593.88,593.65,1.381]
[1744519174393,0.29327737,593.88,593.65,1.381]
[1744519174593,0.30983594,593.87,593.65,1.381]
[1744519176495,0.30983594,593.89,593.65,1.381]
[1744519176695,0.30983594,593.88,593.65,1.381]
[1744519176895,0.30983594,593.87,593.65,1.381]
[1744519177089,0.30983594,593.89,593.65,1.381]
[1744519177396,0.29327737,593.86,593.65,1.381]
[1744519177598,0.30983594,593.85,593.65,1.381]
[1744519179297,0.30983594,593.89,593.65,1.381]
[1744519179493,0.30983594,593.88,593.65,1.381]
[1744519179691,0.30983594,593.89,593.65,1.381]
[1744519179891,0.30983594,593.88,593.65,1.381]
[1744519180095,0.30984402,593.87,593.65,1.381]
[1744519180391,0.30984402,593.86,593.65,1.381]
[1744519180594,0.30984402,593.85,593.65,1.381]
[1744519182398,0.30984402,593.89,593.65,1.381]
[1744519182693,0.30984402,593.88,593.65,1.381]
[1744519182899,0.30984402,593.89,593.65,1.381]
[1744519183100,0.30984402,593.88,593.65,1.381]
[1744519183301,0.30984402,593.89,593.65,1.381]
[1744519183496,0.29326749,593.88,593.65,1.381]
[1744519183701,0.30984402,593.87,593.65,1.381]
[1744519184202,0.30984402,593.87,593.65,0.691]
[1744519185503,0.30984402,593.86,593.65,0.691]
[1744519185707,0.30984402,593.89,593.65,0.691]
[1744519185903,0.30984402,593.88,593.63,0.65]
[1744519186102,0.30984402,593.89,593.63,0.65]
[1744519186402,0.29326996,593.87,593.63,0.65]
[1744519186603,0.30984402,593.86,593.63,0.65]
[1744519188297,0.30984402,593.85,593.63,0.65]
[1744519188501,0.30984402,593.89,593.63,0.65]
[1744519188703,0.30984402,593.88,593.63,0.65]
[1744519188904,0.30984402,593.87,593.63,0.65]
[1744519189203,0.30984402,593.86,593.63,0.65]
[1744519189503,0.30984402,593.85,593.63,0.65]
[1744519191308,0.30984402,593.89,593.63,0.65]
[1744519192409,0.29324525,593.88,593.63,0.65]
[1744519192614,0.30984402,593.87,593.63,0.65]
[1744519192810,0.29324525,593.88,593.63,0.65]
[1744519193009,0.30975498,593.87,593.63,0.65]
[1744519194410,0.30975498,593.89,593.63,0.65]
[1744519195410,0.29322548,593.88,593.63,0.65]
[1744519195606,0.30975498,593.87,593.63,0.65]
[1744519197307,0.30975498,593.89,593.63,0.65]
[1744519197513,0.29323783,593.86,593.63,0.65]
[1744519197808,0.30975498,593.85,593.63,0.65]
[1744519198514,0.29323783,593.86,593.63,0.65]
[1744519200215,0.33675702,593.9,593.63,0.65]
[1744519200414,0.30976234,593.89,593.63,0.65]
[1744519200610,0.33675702,593.9,593.5,1.327]
[1744519200810,0.3097607,593.89,593.5,1.327]
[1744519201209,0.3097607,593.89,593.5,1.878]
[1744519201414,0.29325143,593.88,593.5,1.878]
[1744519201715,0.29325143,593.88,593.5,2.409]
[1744519201716,0.3097607,593.87,593.5,2.409]
[1744519203314,0.3097607,593.89,593.5,2.409]
[1744519203509,0.3097607,593.88,593.5,2.409]
[1744519203713,0.3097607,593.89,593.5,2.409]
[1744519203914,0.3097607,593.88,593.5,2.409]
[1744519204109,0.3097607,593.87,593.5,2.409]
[1744519204415,0.3097607,593.86,593.5,2.409]
[1744519205317,0.29325143,593.87,593.5,2.409]
[1744519205517,0.3097922,593.86,593.5,2.409]
[1744519206310,0.3097922,593.89,593.5,2.409]
[1744519207318,0.29325637,593.88,593.5,2.409]
[1744519207516,0.3097922,593.87,593.5,2.409]
[1744519208518,0.29325637,593.88,593.5,2.409]
[1744519208717,0.30977508,593.87,593.5,2.409]
[1744519209416,0.30977508,593.86,593.5,2.409]
[1744519209713,0.30977508,593.85,593.5,2.409]
[1744519209917,0.30977508,593.89,593.5,2.409]
[1744519210123,0.30977508,593.88,593.5,2.409]
[1744519210322,0.33675702,593.9,593.5,2.409]
[1744519210516,0.29325637,593.88,593.5,2.409]
[1744519210718,0.30978789,593.87,593.5,1.774]
[1744519212126,0.33675702,593.9,593.5,1.774]
[1744519212320,0.30979621,593.89,593.5,1.774]
[1744519213120,0.30979621,593.89,593.5,2.49]
[1744519213319,0.29327367,593.88,593.5,2.49]
[1744519213525,0.30979621,593.87,593.5,2.49]
[1744519215422,0.30979621,593.87,593.5,1.939]
[1744519215623,0.30979621,593.86,593.5,1.939]
[1744519215824,0.30979621,593.89,593.5,1.939]
[1744519216025,0.30979621,593.88,593.5,1.939]
[1744519216223,0.30979621,593.89,593.5,1.939]
[1744519216422,0.6031119,593.88,593.5,1.939]
[1744519216618,0.30979621,593.87,593.5,1.939]
[1744519216819,0.33677971,593.86,593.5,1.939]
[1744519217027,0.30979621,593.85,593.5,1.939]
[1744519217227,0.30988758,593.84,593.5,1.939]
[1744519218830,0.33678538,593.85,593.5,1.939]
[1744519219022,0.30988293,593.84,593.5,1.939]
[1744519219327,0.29332681,593.83,593.5,1.939]
[1744519219629,0.30988293,593.82,593.5,1.939]
[1744519221429,0.33680239,593.82,593.5,1.939]
[1744519221629,0.30988293,593.81,593.5,1.939]
[1744519221828,0.30988293,593.81,593.5,1.247]
[1744519222025,0.33680239,593.82,593.5,1.247]